{"text_format":"3","workbook":"xlsx","n_sheets":2,"sheets":["ITS-VIH","Brigadas Móviles"],"not_rendered":{"images":1,"defined_names":2,"comments":1},"read":"whole","date_system":"1900"}

{"sheet":"ITS-VIH","index":0,"n_rows":140,"n_cols":30,"rows_kept":140,"merged":[[2,1,2,29],[4,11,4,13],[5,2,5,5],[5,8,5,9],[7,2,7,5],[9,2,9,5],[11,2,11,5],[15,1,17,2],[15,3,17,3],[15,4,15,13],[15,14,15,23],[15,24,16,25],[15,26,16,27],[15,28,17,28],[15,29,17,29],[16,4,16,5],[16,6,16,7],[16,8,16,9],[16,10,16,11],[16,12,16,13],[16,14,16,15],[16,16,16,17],[16,18,16,19],[16,20,16,21],[16,22,16,23],[20,14,20,23],[27,4,27,5],[27,6,27,7],[27,8,27,9],[27,10,27,11],[27,12,27,13],[27,14,27,15],[27,16,27,17],[27,18,27,19],[27,20,27,21],[27,22,27,23],[27,26,27,29],[29,1,30,2],[29,3,30,3],[29,4,29,8],[29,9,29,13],[29,14,29,16],[38,1,39,2],[38,3,39,3],[38,4,38,8],[38,9,38,13],[38,14,38,16],[47,1,48,2],[47,3,48,3],[47,4,47,8],[47,9,47,13],[47,14,47,16],[56,1,57,2],[56,3,57,3],[56,4,56,8],[56,9,56,13],[56,14,56,16],[70,1,71,2],[70,3,71,3],[70,4,71,4],[70,5,71,5],[70,6,71,6],[70,7,71,7],[70,8,71,8],[70,9,70,11],[72,13,77,15],[82,1,82,2],[90,1,91,2],[90,3,91,3],[90,4,90,6],[90,7,90,9],[90,10,90,12],[90,13,90,15],[103,1,104,2],[103,3,104,3],[103,4,103,6],[103,7,103,9],[103,10,103,12],[103,13,103,15],[103,16,103,18],[103,19,104,19],[103,20,104,20],[115,1,116,2],[115,3,116,3],[115,4,115,6],[115,7,115,9],[115,10,115,11],[126,1,127,2],[126,3,127,3],[126,4,126,6],[126,7,126,9],[126,10,126,11],[126,12,126,13],[126,14,127,14],[126,15,127,15],[139,10,139,11]]}
[]
[]
[null,"                                  HOJA DE MONITORIZACION MENSUAL DE LA ESN PREVENCION Y CONTROL DE ITS, VIH/SIDA Y HEPATITIS B                                HOJA DE MONITORIZACION MENSUAL DE LA ESN PREVENCION Y CONTROL DE ITS, VIH/SIDA Y HEPATITIS B"]
[]
[null,null,"DIRESA/DISA/GERESA ",{"$nulls":8},"INSTITUCIÓN"]
[{"$nulls":7},"MES ",{"$nulls":4},"MINSA "]
[null,null,"RED ",{"$nulls":9},"ESSALUD "]
[{"$nulls":7},"AÑO ",{"$nulls":4},"SANIDAD FFAA - PNP "]
[null,null,"MICRO RED",{"$nulls":9},"INPE "]
[{"$nulls":12},"ONG"]
[null,null,"ESTABLECIMIENTO ",{"$nulls":9},"OTRA  (especificar)"]
[]
[]
[]
[]
[null,"1.-  POBLACION GENERAL: ITS",null,"Fuente","Femenino",{"$nulls":9},"Masculino",{"$nulls":9},"Total \nDiagnósticos",null,"Total \nTratados",null,"Contactos","Contactos Tratados"]
[{"$nulls":4}," 01d - 11a",null,"12a - 17a",null,"18a - 29a",null,"30a - 59a",null,"60a más",null," 01d - 11a",null,"12a - 17a",null,"18a - 29a",null,"30a - 59a",null,"60a más"]
[{"$nulls":4},"Diagnóstico","Tratado","Diagnóstico","Tratado","Diagnóstico","Tratado","Diagnóstico","Tratado","Diagnóstico","Tratado","Diagnóstico","Tratado","Diagnóstico","Tratado","Diagnóstico","Tratado","Diagnóstico","Tratado","Diagnóstico","Tratado","F","M","F","M"]
[null,"1.1.","N° de Personas con manejo sindrómico",{"$nulls":21},{"$f":"E19+G19+I19+K19+M19","v":0},{"$f":"O19+Q19+S19+U19+W19","v":0},{"$f":"F19+H19+J19+L19+N19","v":0},{"$f":"P19+R19+T19+V19+X19","v":0}]
[null,"1.2.","Nº de casos de descarga uretral",{"$nulls":21},{"$f":"E20+G20+I20+K20+M20","v":0},{"$f":"O20+Q20+S20+U20+W20","v":0},{"$f":"F20+H20+J20+L20+N20","v":0},{"$f":"P20+R20+T20+V20+X20","v":0}]
[null,"1.3.","Nº de casos de flujo vaginal compatible con ITS",{"$nulls":21},0,0,0,0]
[null,"1.4.","Nº de casos de úlcera genital ",{"$nulls":21},0,0,0,0]
[null,"1.5.","Nº de casos de bubón inguinal ",{"$nulls":21},0,0,0,0]
[null,"1.6.","Nº de casos con síndrome de dolor abdominal bajo",{"$nulls":21},0,0,0,0]
[null,"1.7.","Nº de personas con manejo etiológico",{"$nulls":21},0,0,0,0]
[null,"1.8.","Nº de casos con Gonorrea",{"$nulls":21},0,0,0,0]
[null,"1.9.","Nº de casos con serología reactiva para Sífilis",{"$nulls":21},0,0,0,0]
[null,"1.10.","Nº de personas que reciben consejería en ITS ",{"$nulls":21},{"$f":"G28+I28+K28+M28","v":0},{"$f":"W28+U28+S28+Q28","v":0}]
[]
[null,"2.-  HEPATITIS B",null,"Fuente","Femenino",{"$nulls":4},"Masculino",{"$nulls":4},"Total"]
[{"$nulls":4},"01d - 11a","12a - 17a","18a - 29a","30a - 59a","60a más","01d - 11a","12a - 17a","18a - 29a","30a - 59a","60a más","Femenino","Masculino","Total"]
[null,"2.1.","N° personas tamizadas a Hepatitis B ",{"$nulls":11},{"$f":"SUM(E32:I32)","v":0},{"$f":"SUM(J32:N32)","v":0},{"$f":"SUM(O32:P32)","v":0}]
[null,"2.2.","N° personas tamizadas reactivas a Hepatitis B ",{"$nulls":11},0,0,0]
[null,"2.3.","N° Personas con diagnóstico confirmado de Hepatitis B Crónica ",{"$nulls":11},0,0,0]
[null,"2.4.","N° personas de población indígena tamizadas a Hepatitis B ",{"$nulls":11},0,0,0]
[null,"2.5.","N° de personas de población indígena tamizadas reactivas a Hepatitis B ",{"$nulls":11},0,0,0]
[null,"2.6.","N° Personas de población indígena con diagnóstico confirmado de Hepatitis B Crónica ",{"$nulls":11},0,0,0]
[]
[null,"3.- POBLACION GENERAL: TAMIZAJE",null,"Fuente","Femenino",{"$nulls":4},"Masculino",{"$nulls":4},"Total"]
[{"$nulls":4},"01d - 11a","12a - 17a","18a - 29a","30a - 59a","60a más","01d - 11a","12a - 17a","18a - 29a","30a - 59a","60a más","Femenino","Masculino","Total"]
[null,"3.1.","Nº de personas tamizadas para VIH (excepto gestantes)",{"$nulls":11},{"$f":"SUM(E41:I41)","v":0},{"$f":"SUM(J41:N41)","v":0},{"$f":"SUM(O41:P41)","v":0}]
[null,"3.2.","Nº de personas tamizadas para VIH con resultado reactivo (excepto gestantes)",{"$nulls":11},0,0,0]
[null,"3.3.","Nº de personas con TB tamizadas para VIH ",{"$nulls":11},0,0,0]
[null,"3.4.","Nº de personas con TB tamizadas reactivas para VIH ",{"$nulls":11},0,0,0]
[null,"3.5.","Nº de personas de población indígena tamizadas para VIH",{"$nulls":11},0,0,0]
[null,"3.6.","Nº de personas de población indígena tamizadas para VIH con resultado reactivo",{"$nulls":11},0,0,0]
[]
[null,"4.- EXPOSICION A VIH",null,"Fuente","Femenino",{"$nulls":4},"Masculino",{"$nulls":4},"Total"]
[{"$nulls":4},"01d - 11a","12a - 17a","18a - 29a","30a - 59a","60a más","01d - 11a","12a - 17a","18a - 29a","30a - 59a","60a más","Femenino","Masculino","Total"]
[null,"4.1.","Nº de personas que sufrieron exposición ocupacional al VIH ",{"$nulls":11},{"$f":"SUM(G50:I50)","v":0},{"$f":"SUM(L50:N50)","v":0},{"$f":"SUM(O50:P50)","v":0}]
[null,"4.2.","Nº de personas que sufrieron exposición ocupacional al VIH y reciben profilaxis ARV",{"$nulls":11},{"$f":"SUM(E51:I51)","v":0},{"$f":"SUM(J51:N51)","v":0},0]
[null,"4.3.","Nº de personas expuestas a VIH por exposición no ocupacional",{"$nulls":11},{"$f":"SUM(E52:I52)","v":0},{"$f":"SUM(J52:N52)","v":0},0]
[null,"4.4.","Nº de personas expuestas a VIH por exposición no ocupacional y reciben profilaxis ARV",{"$nulls":11},{"$f":"SUM(E53:I53)","v":0},{"$f":"SUM(J53:N53)","v":0},0]
[null,"4.5.","Nº de personas que sufrieron exposición ocupacional a Hepatitis B ",{"$nulls":11},{"$f":"SUM(E54:I54)","v":0},{"$f":"SUM(J54:N54)","v":0},0]
[null,"4.6.","Nº de personas que sufrieron exposición ocupacional a Hepatitis B y no fueron previamente vacunados.",{"$nulls":11},{"$f":"SUM(E55:I55)","v":0},{"$f":"SUM(J55:N55)","v":0},0]
[]
[null,"5.-   PVVIH:  ATENCIÓN INTEGRAL",null,"Fuente","Femenino",{"$nulls":4},"Masculino",{"$nulls":4},"Total"]
[{"$nulls":4},"01d - 11a","12a - 17a","18a - 29a","30a - 59a","60a más","01d - 11a","12a - 17a","18a - 29a","30a - 59a","60a más","Femenino","Masculino","Total"]
[null,"5.1.","Nº de PVVIH que inician Terapia preventiva con Cotrimoxazol (TPC)",{"$nulls":11},{"$f":"SUM(E59:I59)","v":0},{"$f":"SUM(J59:N59)","v":0},{"$f":"SUM(O59:P59)","v":0}]
[null,"5.2.","Nº de PVVIH que inician Terapia preventiva con Isoniazida (TPI)",{"$nulls":11},{"$f":"SUM(E60:I60)","v":0},{"$f":"SUM(J60:N60)","v":0},{"$f":"SUM(O60:P60)","v":0}]
[null,"5.3.","N° de PVVIH que abandonan la Terapia preventiva con Isoniazida (TPI)",{"$nulls":11},0,0,0]
[null,"5.4.","Nº de PVVIH que completan Terapia preventiva con Isoniazida (TPI)",{"$nulls":11},0,0,0]
[null,"5.5.","N° de PVVIH con diagnóstico de TB ",{"$nulls":11},0,0,0]
[null,"5.6.","N° de PVVIH con TB que inician tratamiento para TB",{"$nulls":11},0,0,0]
[null,"5.7.","N° de PVVIH con TB que abandonan tratamiento para TB",{"$nulls":11},0,0,0]
[null,"5.8.","N° de PVVIH con TB que completan tratamiento para TB",{"$nulls":11},0,0,0]
[null,"5.9.","N° de PVVIH con Hepatitis B crónica",{"$nulls":11},0,0,0]
[null,"5.10.","N° de PVVIH que completan vacunación de Hepatitis B",{"$nulls":11},0,0,0]
[null,"5.11.","Nº de PVVIH fallecidos en el mes",{"$nulls":11},0,0,0]
[]
[null,"6.- GESTANTES Y RECIÉN NACIDOS: \nTransmisión Vertical (Sífilis, VIH, Hepatitis B) ",null,"Fuente","01d -11a","12a - 17a","18a - 29a","30a - 59a","Total","TRIMESTRES DE EMBARAZO"]
[{"$nulls":9},"1er Trim.","2do Trim.","3er Trim."]
[null,6.1,"Nº de Gestantes tamizadas para Sífilis (1er tamizaje)",{"$nulls":5},{"$f":"SUM(F73:H73)","v":0},{"$nulls":4}," * Si la suma del total de Gestantes por trimestre de gestación no coincide con el total de gestantes desagregados por edades es porque se ha registrado una gestante con dx de sífilis fuera de la Atención Prenatal sin considerar el trimestre de gestación."]
[null,"6.2.","Nº de Gestantes tamizadas reactivas para Sífilis",{"$nulls":5},{"$f":"SUM(F74:H74)","v":0}]
[null,"6.3.","N° de Gestantes con Sífilis que reciben tratamiento completo",{"$nulls":5},0]
[null,"6.4.","Nº de Gestantes tamizadas para VIH (1er tamizaje)",{"$nulls":5},0]
[null,"6.5.","Nº de Gestantes tamizadas reactivas para VIH",{"$nulls":5},0]
[null,"6.6.","N° de Gestantes con VIH que reciben TARGA",{"$nulls":5},0]
[null,"6.7.","N° de Gestantes con VIH que culminan embarazo por cesárea",{"$nulls":5},0]
[null,"6.8.","Nº de Gestantes tamizadas para Hepatitis B",{"$nulls":5},0]
[null,"6.9.","Nº de Gestantes tamizadas reactivas para Hepatitis B",{"$nulls":5},0]
[]
[{"$nulls":3},"Fuente","Total"]
[null,"6.10.","N° de RN con Sífilis congénita que reciben tratamiento completo"]
[null,"6.11.","N° de RN expuestos a VIH que reciben ARV"]
[null,"6.12.","N° de RN expuestos a VIH que inician sucedáneos de leche materna"]
[null,6.13,"N° RN expuestos a Hepatitis B"]
[null,"6.14.","N° RN expuestos con Vacuna de Hepatitis B en atención de Parto"]
[null,"6.15.","N° RN expuestos que reciben Inmunoglobulina (HBIG)"]
[]
[null,"7.-  POBLACION CLAVE: Trabajadoras/es Sexuales",null,"Fuente","TS - Femenino",null,null,"TS - HSH",null,null,"TS - Trans",null,null,"Total"]
[{"$nulls":4},"18a -29a","30a - 59a","60a más","18-29a","30-59a","60a más","18-29a","30-59a","60a más","TS - F","TS - HSH","TS - Trans"]
[null,"7.1.","Nº TS atendidos/as en AMP",{"$nulls":10},{"$f":"SUM(E93:G93)","v":0},{"$f":"SUM(H93:J93)","v":0},{"$f":"SUM(K93:M93)","v":0}]
[null,"7.2.","Nº de atenciones a TS  en AMP",{"$nulls":10},{"$f":"SUM(E94:G94)","v":0},{"$f":"SUM(H94:J94)","v":0},{"$f":"SUM(K94:M94)","v":0}]
[null,"7.3.","Nº TS controlados/as (4 veces/año)",{"$nulls":10},0,0,0]
[null,"7.4.","Nº de TS tamizados/as para VIH (1º Tamizaje)",{"$nulls":10},0,0,0]
[null,"7.5.","Nº  TS con tamizaje para VIH con resultado reactivo",{"$nulls":10},0,0,0]
[null,"7.6.","N° TS que inician Terapia Antiretroviral",{"$nulls":10},0,0,0]
[null,"7.7.","N° de TS tamizados/as para Hepatitis B",{"$nulls":10},0,0,0]
[null,"7.8.","Nº de TS con tamizaje reactivo para Hepatitis B",{"$nulls":10},0,0,0]
[null,"7.9.","N° de TS que completan vacunación de Hepatitis B",{"$nulls":10},0,0,0]
[null,null,"*AMP= Atención Médica Periódica"]
[]
[null,"8.-  POBLACION CLAVE:  \nTrabajadoras/es Sexuales : ITS",null,"Fuente","TS - Femenino",null,null,"TS - HSH",null,null,"TS - Trans",null,null,"Total",null,null,"TS Tratados",null,null,"Contactos","Contactos Tratados"]
[{"$nulls":4},"18-29a","30-59a","60a más","18-29a","30-59a","60a más","18-29a","30-59a","60a más","TS - F","TS - HSH","TS - Trans","TS - F","TS - HSH","TS - Trans"]
[null,"8.1.","Nº de personas con diagnóstico de ITS con manejo sindrómico",{"$nulls":10},{"$f":"SUM(E106:G106)","v":0},{"$f":"SUM(H106:J106)","v":0},{"$f":"SUM(K106:M106)","v":0}]
[null,"8.2.","Nº de casos con descarga uretral",{"$nulls":10},{"$f":"SUM(E107:G107)","v":0},{"$f":"SUM(H107:J107)","v":0},{"$f":"SUM(K107:M107)","v":0}]
[null,"8.3.","Nº de casos con flujo vaginal compatible con ITS",{"$nulls":10},0,0,0]
[null,"8.4.","Nº de casos de úlcera genital ",{"$nulls":10},0,0,0]
[null,"8.5.","Nº de casos de bubón inguinal",{"$nulls":10},0,0,0]
[null,"8.6.","Nº de casos con síndrome de dolor abdominal bajo",{"$nulls":10},0,0,0]
[null,"8.7.","Nº de personas con diagnóstico de ITS con manejo etiológico",{"$nulls":10},0,0,0]
[null,"8.8.","Nº de casos de tricomoniasís",{"$nulls":10},0,0,0]
[null,"8.9.","Nº de casos de gonorrea",{"$nulls":10},0,0,0]
[]
[null,"9.- POBLACION CLAVE: \nHombres que tienen Sexo con otros Hombres / Trans",null,"Fuente","HSH ",null,null,"Trans",null,null,"Total"]
[{"$nulls":4},"18-29a","30-59a","60a más","18-29a","30-59a","60 a más","HSH","Trans"]
[null,"9.1.","Nº HSH/Trans atendidos/as",{"$nulls":7},{"$f":"SUM(E118:G118)","v":0},{"$f":"SUM(H118:J118)","v":0}]
[null,"9.2.","Nº de atenciones a HSH/Trans ",{"$nulls":7},{"$f":"SUM(E119:G119)","v":0},{"$f":"SUM(H119:J119)","v":0}]
[null,"9.3.","Nº de HSH/Trans  tamizados/as para VIH (1º Tamizaje)",{"$nulls":7},0,0]
[null,"9.4.","Nº  HSH/Trans con tamizaje para VIH con resultado reactivo",{"$nulls":7},0,0]
[null,"9.5.","N° HSH/Trans que inician Terapia Antiretroviral",{"$nulls":7},0,0]
[null,"9.6.","N° HSH/Trans tamizados/as para Hepatitis B",{"$nulls":7},0,0]
[null,"9.7.","Nº  HSH/Trans con tamizaje para Hepatitis B con resultado reactivo",{"$nulls":7},0,0]
[null,"9.8.","N° de HSH/Trans que completan vacunación de Hepatitis B",{"$nulls":7},0,0]
[]
[null,"10.- POBLACION CLAVE: \nHombres que tienen sexo con otros hombres / Trans : ITS",null,"Fuente","HSH ",null,null,"Trans",null,null,"Total",null,"Tratados",null,"Contactos","Contactos Tratados"]
[{"$nulls":4},"18-29a","30-59a","60a más","18-29a","30-59a","60 a más","HSH","Trans","HSH","Trans"]
[null,"10.1.","Nº de personas con diagnóstico de ITS con manejo sindrómico",{"$nulls":7},{"$f":"SUM(E129:G129)","v":0},{"$f":"SUM(H129:J129)","v":0},"."]
[null,"10.2.","Nº de casos con descarga uretral",{"$nulls":7},{"$f":"SUM(E130:G130)","v":0},{"$f":"SUM(H130:J130)","v":0}]
[null,"10.3.","Nº de casos de úlcera genital ",{"$nulls":7},0,0]
[null,"10.4.","Nº de casos de bubón inguinal ",{"$nulls":7},0,0]
[null,"10.5.","Nº de personas con diagnóstico de ITS con manejo etiológico",{"$nulls":7},0,0]
[null,"10.6.","Nº de casos de gonorrea",{"$nulls":7},0,0]
[null,"10.7.","Nº de casos con serología reactiva para sífilis",{"$nulls":7},0,0]
[]
[null,null,"Fuente HIS"]
[null,null,"Fuente Externa"]
[]
[{"$nulls":10},"Reporte generado :"]

{"sheet":"Brigadas Móviles","index":1,"n_rows":29,"n_cols":12,"rows_kept":29,"merged":[[1,1,1,11],[4,1,4,2],[6,1,6,2],[8,1,8,2],[10,1,10,2],[12,1,13,1],[12,2,12,5],[12,6,12,9],[12,10,12,11],[21,1,22,1],[21,2,21,5],[21,6,21,9],[21,10,21,11]]}
[]
[null,"REPORTE DE TAMIZAJES REALIZADOS POR BRIGADAS MÓVILES"]
[{"$nulls":9},"INSTITUCIÓN"]
[null,"DIRIS/DIRESA/DISA/GERESA ",{"$nulls":8},"MINSA "]
[{"$nulls":4},"MES ",{"$nulls":5},"ESSALUD "]
[null,"RED ",{"$nulls":8},"SANIDAD FFAA - PNP "]
[{"$nulls":4},"AÑO ",{"$nulls":5},"INPE "]
[null,"MICRO RED",{"$nulls":8},"ONG"]
[{"$nulls":10},"OTRA  (especificar)"]
[null,"IPRESS"]
[]
[]
[null,"POBLACION CLAVE: \nHombres que tienen Sexo con otros Hombres / Trans","HSH ",{"$nulls":3},"Trans",{"$nulls":3},"Total"]
[null,null,"12-17a","18-29a","30-59a","60a más","12-17a","18-29a","30-59a","60 a más","HSH","Trans"]
[null,"Nº de HSH/Trans  tamizados/as para VIH (1º Tamizaje)",{"$nulls":8},{"$f":"SUM(C15:F15)","v":0},{"$f":"SUM(G15:J15)","v":0}]
[null,"Nº  HSH/Trans con tamizaje para VIH con resultado reactivo",{"$nulls":8},{"$f":"SUM(C16:F16)","v":0},{"$f":"SUM(G16:J16)","v":0}]
[null,"Nº de HSH/Trans  tamizados/as para Sífilis  (1º Tamizaje)",{"$nulls":8},0,0]
[null,"Nº  HSH/Trans con tamizaje para Sífilis con resultado reactivo",{"$nulls":8},0,0]
[null,"Nº de HSH/Trans  tamizados/as para Hepatitis  (1º Tamizaje)",{"$nulls":8},0,0]
[null,"Nº  HSH/Trans con tamizaje para Hepatitis con resultado reactivo",{"$nulls":8},0,0]
[]
[null,"POBLACION CLAVE: \nTrabajadores Sexuales","TS -HSH",{"$nulls":3},"TS - Trans",{"$nulls":3},"Total"]
[null,null,"12-17a","18-29a","30-59a","60a más","12-17a","18-29a","30-59a","60 a más","TS-HSH","TS-Trans"]
[null,"Nº de TS  tamizados/as para VIH (1º Tamizaje)",{"$nulls":8},{"$f":"SUM(C24:F24)","v":0},{"$f":"SUM(G24:J24)","v":0}]
[null,"Nº  TS con tamizaje para VIH con resultado reactivo",{"$nulls":8},{"$f":"SUM(C25:F25)","v":0},{"$f":"SUM(G25:J25)","v":0}]
[null,"Nº de TS  tamizados/as para Sífilis  (1º Tamizaje)",{"$nulls":8},0,0]
[null,"Nº  TS con tamizaje para Sífilis con resultado reactivo",{"$nulls":8},0,0]
[null,"Nº de TS  tamizados/as para Hepatitis  (1º Tamizaje)",{"$nulls":8},0,0]
[null,"Nº  TS con tamizaje para Hepatitis con resultado reactivo",{"$nulls":8},0,0]